fUST/lending_fUST_20240510
["ID","MTS","AMOUNT","RATE_DAILY","PERIOD"]
[326759019,1715322637673,-530.938567,0.00021918,2]
[326759020,1715322637682,-530.938567,0.00021918,2]
[326759021,1715322637690,-530.938567,0.00021918,2]
[326759022,1715322637700,-530.938567,0.00021918,2]
[326759023,1715322637709,-530.938567,0.00021918,2]
[326759024,1715322637718,-530.938567,0.00021918,2]
[326759025,1715322637727,-530.938567,0.00021918,2]
[326759026,1715322637737,-530.938567,0.00021918,2]
[326759027,1715322637746,-530.938567,0.00021918,2]
[326759028,1715322637755,-530.938566,0.00021918,2]
[326759029,1715322637765,-159.42165086,0.00022,2]
[326759030,1715322637775,-166.666666,0.00022431,2]
[326759031,1715322637785,-166.666666,0.00022944,2]
[326759032,1715322637794,-714.97924015,0.00023,2]
[326759033,1715322637803,-1091.40967912,0.00023432,2]
[326759034,1715322637812,-166.666666,0.00023456,2]
[326759035,1715322637821,-623.3413589,0.00023603,2]
[326759036,1715322637830,-575.19735906,0.000239,2]
[326759037,1715322637839,-166.666666,0.00023969,2]
[326759038,1715322637849,-166.666666,0.00024482,2]
[326759039,1715322637858,-620.16706794,0.00024783,2]
[326759040,1715322637868,-208.43815709,0.00025,2]
[326759041,1715322637877,-1046.67822942,0.00025,2]
[326759042,1715322637886,-271.05788261,0.00025,2]
[326759043,1715322637896,-62150.13926787,0.00025,3]
[326759044,1715322637905,-400.10978683,0.00025,2]
[326759045,1715322637914,-160.0,0.00025,2]
[326759046,1715322637924,-190.05602608,0.00025,2]
[326759047,1715322637932,-757.87121932,0.00025,2]
[326759048,1715322637941,-497.634,0.00025207,2]
[326759049,1715322637951,-652.9,0.00025817,3]
[326759050,1715322637961,-803.13073405,0.00026804,2]
[326759054,1715322637970,-185.51419291,0.00027,2]
[326759056,1715322637979,-500.456555,0.00027,7]
[326759059,1715322637988,-322.40707448,0.00028,2]
[326759061,1715322637998,-7951.92773563,0.00028,2]
[326759063,1715322638007,-575.19735906,0.000289,2]
[326759066,1715322638016,-548.026713,0.00029433,2]
[326759068,1715322638025,-154.16851108,0.00029526,2]
[326759070,1715322638034,-154.7215013,0.0003,4]
[326759071,1715322638043,-17197.76503125,0.0003,10]
[326759074,1715322638053,-154.7215013,0.0003,4]
[326759075,1715322638063,-262.0,0.0003,2]
[326759076,1715322638073,-652.9,0.00030337,5]
[326759077,1715322638082,-154.16851108,0.00030598,7]
[326759079,1715322638091,-154.16851108,0.00030805,7]
[326759081,1715322638101,-154.16851108,0.00030871,7]
[326759083,1715322638110,-447.67704854,0.00032,4]
[326759085,1715322638119,-262.0,0.00033,2]
[326759087,1715322638129,-169.75,0.00033984,120]
[326759089,1715322638138,-467.00386112,0.00034,4]
[326759091,1715322638148,-154.16851108,0.0003462,7]
[326759093,1715322638160,-252.76404105,0.0003488,120]
[326759095,1715322638169,-160.0,0.000349,11]
[326759097,1715322638178,-154.16851108,0.0003492,7]
[326759099,1715322638188,-500.0,0.00034989,3]
[326759101,1715322638198,-2880.52598457,0.00035,30]
[326759103,1715322638207,-500.0,0.00035,30]
[326759105,1715322638216,-994.88184009,0.00035,4]
[326759107,1715322638226,-160.3708549,0.00035,30]
[326759109,1715322638237,-1295.64101643,0.00035,30]
[326759110,1715322638246,-154.7215013,0.00035,4]
[326759112,1715322638255,-5929.56989745,0.00035,4]
[326759114,1715322638265,-322.15408965,0.00035,30]
[326759116,1715322638274,-1179.6264,0.00035,2]
[326759118,1715322638283,-1524.66082666,0.00035455,14]
[326759120,1715322638292,-331.15514389,0.000356,30]
[326759122,1715322638301,-600.060133,0.00035616,120]
[326759124,1715322638310,-24746.74,0.00035616,3]
[326759126,1715322638319,-803.13073405,0.00035654,2]
[326759128,1715322638328,-154.16851108,0.00035834,7]
[326759130,1715322638338,-154.7215013,0.0003589,2]
[326759132,1715322638348,-1875.52518568,0.00036,30]
[326759134,1715322638358,-262.0,0.00036,2]
[326759136,1715322638367,-256.65620727,0.0003624,2]
[326759138,1715322638377,-1000.0,0.00037,37]
[326759140,1715322638386,-1980.86570834,0.00037,2]
[326759142,1715322638395,-196.2985,0.00037359,30]
[326759144,1715322638404,-826.67218476,0.00038,2]
[326759146,1715322638413,-1286.05518196,0.00038495,4]
[326759148,1715322638422,-294.19220564,0.00038496,4]
[326759150,1715322638430,-400.10023021,0.00038496,4]
[326759152,1715322638440,-156.50504323,0.00038497,4]
[326759154,1715322638451,-155.26357272,0.00038498,4]
[326759157,1715322638465,-157.15214153,0.00038498,4]
[326759159,1715322638479,-155.13288307,0.00038498,4]
[326759161,1715322638490,-166.40712762,0.00038498,4]
[326759164,1715322638502,-214.1935907,0.00038498,4]
[326759166,1715322638514,-274.67301204,0.00038498,4]
[326759168,1715322638528,-160.47299399,0.00038498,4]
[326759171,1715322638541,-198.91205125,0.00038498,4]
[326759173,1715322638554,-300.5409247,0.00038498,4]
[326759176,1715322638571,-180.41614856,0.00038498,4]
[326759178,1715322638584,-155.66744486,0.00038498,4]
[326759180,1715322638597,-155.7672655,0.00038498,2]
[326759183,1715322638610,-296.83509024,0.00038498,4]
[326759185,1715322638622,-165.32265559,0.00038498,4]
[326759187,1715322638636,-187.64513291,0.00038498,4]
[326759188,1715322638649,-280.99686767,0.00038498,4]
[326759189,1715322638660,-155.83431105,0.00038498,4]
[326759190,1715322638672,-259.73353337,0.00038498,4]
[326759191,1715322638683,-306.50391465,0.00038498,4]
[326759192,1715322638696,-241.73982193,0.00038498,4]
[326759193,1715322638709,-259.48825253,0.00038498,4]
[326759194,1715322638722,-187.02933172,0.00038498,4]
[326759195,1715322638738,-3626.69580132,0.000385,60]
[326759196,1715322638752,-216.27,0.00038979,35]
[326759198,1715322638763,-5854.17,0.00038998,2]
[326759201,1715322638774,-5854.17,0.00038998,2]
[326759203,1715322638785,-5854.17,0.00038998,2]
[326759205,1715322638797,-5854.17,0.00038998,2]
[326759208,1715322638810,-5854.17,0.00038998,2]
[326759210,1715322638823,-5854.17,0.00038998,2]
[326759212,1715322638835,-5854.17,0.00038998,2]
[326759214,1715322638847,-5854.17,0.00038998,2]
[326759217,1715322638860,-5854.17,0.00038998,2]
[326759219,1715322638872,-5854.17,0.00038998,2]
[326759221,1715322638882,-150.0,0.00038999,120]
[326759223,1715322638893,-7658.1862278,0.00038999,5]
[326759226,1715322638905,-2014.10443597,0.00038999,120]
[326759228,1715322638916,-360.25210695,0.00038999,30]
[326759230,1715322638928,-608.01587694,0.00038999,120]
[326759232,1715322638938,-152.19783568,0.00038999,10]
[326759234,1715322638948,-302.84228456,0.00038999,120]
[326759236,1715322638958,-8853.23093228,0.00038999,120]
[326759238,1715322638968,-66959.60173985,0.00038999,30]
[326759345,1715322640226,-500.0,0.00017833,2]
[326759384,1715322640704,-631.88492259,0.00017833,2]
[326759385,1715322641316,-1543.08679505,0.00017833,2]
[326759386,1715322641327,-652.9,0.00034856,7]
[326759387,1715322641337,-95957.15554336,0.00038999,30]
[326759441,1715322653595,15617.8246169,0.00010959,2]
[326759442,1715322654483,154.7215013,0.00010959,2]
[326759443,1715322656161,154.7215013,9.999e-05,2]
[326759444,1715322670378,154.7215013,9.999e-05,2]
[326759445,1715322682313,465.40109803,9.999e-05,2]
[326759446,1715322702387,281.19690736,9.999e-05,2]
[326759447,1715322706774,516.44273227,9.999e-05,2]
[326759448,1715322707843,154.7215013,9.999e-05,2]
[326759449,1715322710242,154.7215013,9.999e-05,2]
[326759450,1715322711641,447.20436467,9.999e-05,2]
[326759451,1715322712454,364.48948305,9.999e-05,2]
[326759452,1715322716512,584.46537033,9.999e-05,2]
[326759453,1715322719590,281.19690736,9.999e-05,2]
[326759454,1715322719819,154.7215013,9.999e-05,2]
[326759455,1715322722676,816.97434546,9.999e-05,2]
[326759456,1715322725401,154.7215013,9.999e-05,2]
[326759457,1715322725651,618.26597105,9.999e-05,2]
[326759458,1715322726603,1400.60904381,9.999e-05,2]
[326759459,1715322726780,430.36894356,9.999e-05,2]
[326759460,1715322728493,364.48948305,9.999e-05,2]
[326759461,1715322731426,261.474826,0.0001589,2]
[326759462,1715322739585,279.5712758,9.999e-05,2]
[326759463,1715322744479,364.48948305,9.999e-05,2]
[326759464,1715322746775,430.36894356,9.999e-05,2]
[326759465,1715322762463,364.48948305,9.999e-05,2]
[326759466,1715322764772,224.22221959,9.999e-05,2]
[326759468,1715322771302,744.79112153,0.000138,2]
[326759469,1715322776588,1494.22027638,9.999e-05,2]
[326759470,1715322780468,274.74754971,9.999e-05,2]
[326759471,1715322786779,224.22221959,9.999e-05,2]
[326759472,1715322804903,224.22221959,9.999e-05,2]
[326759473,1715322828786,224.22221959,9.999e-05,2]
[326759474,1715322846783,224.22221959,9.999e-05,2]
[326759475,1715322862789,224.22221959,9.999e-05,2]
[326759477,1715322886964,224.22221959,9.999e-05,2]
[326759479,1715322906782,224.22221959,9.999e-05,2]
[326759481,1715322928787,224.22221959,9.999e-05,2]
[326759483,1715322946793,234.09545735,9.999e-05,2]
[326759484,1715322958857,993.0,0.00019,10]
[326759485,1715322971677,16127.46267544,9.999e-05,2]
[326759487,1715323086185,16127.46267544,9.999e-05,2]
[326759490,1715323101021,770.55057017,0.0001,2]
[326759491,1715323104187,954.87365645,9.999e-05,2]
[326759492,1715323104210,376.96513411,9.999e-05,2]
[326759493,1715323124463,25324.3701714,0.00016197,2]
[326759494,1715323148542,285.37029775,0.00016197,2]
[326759495,1715323164541,285.37029775,0.00016197,2]
[326759496,1715323174638,250.0,0.00016093,2]
[326759497,1715323177454,154.7215013,0.00016197,2]
[326759498,1715323184540,285.37029775,0.00016197,2]
[326759499,1715323202553,262.45656091,0.00016197,2]
[326759500,1715323213459,164.87113324,0.00016197,2]
[326759501,1715323242128,154.7215013,9.999e-05,2]
[326759502,1715323243279,816.57923174,9.999e-05,2]
[326759503,1715323247964,484.08142548,9.999e-05,2]
[326759504,1715323255716,292.24630135,9.999e-05,2]
[326759505,1715323259899,941.02505706,0.00015,2]
[326759506,1715323266563,236.2098159,9.999e-05,2]
[326759507,1715323271729,1042.0,9.999e-05,2]
[326759508,1715323279225,1579.16991007,9.999e-05,2]
[326759509,1715323283494,616.1335173,0.00016081,2]
[326759510,1715323303168,174.164322,0.0001589,2]
[326759511,1715323324771,465.40109803,9.999e-05,2]
[326759512,1715323336725,447.20436467,9.999e-05,2]
[326759513,1715323356146,1381.19450401,0.00016972,2]
[326759514,1715323378985,154.7215013,9.999e-05,2]
[326759515,1715323405924,24900.0,0.00016067,2]
[326759517,1715323420193,1027.52318,0.00016066,2]
[326759518,1715323505470,164.36196723,0.00016953,2]
[326759519,1715323510451,164.36196723,0.00016959,2]
[326759520,1715323514624,161.4794515,0.00016955,2]
[326759522,1715323552068,770.55057017,0.0001,2]
[326759524,1715323566070,709.92894196,0.00015341,2]
[326759525,1715323638003,1208.545191,0.00016941,2]
[326759535,1715323745728,250.0,0.00016029,2]
[326759537,1715323760189,-1882.81807245,0.00017023,2]
[326759538,1715323760212,-1353.98812065,0.00017023,2]
[326759539,1715323769333,816.57923174,9.999e-05,2]
[326759582,1715323834685,-1882.81807245,0.00017014,2]
[326759584,1715323834695,-3057.36000381,0.00017014,2]
[326759596,1715323834823,-292.24630135,0.00017015,2]
[326759597,1715323834833,-941.02505706,0.00017015,2]
[326759598,1715323834842,-2630.79585312,0.00017015,2]
[326759599,1715323834851,-3457.70192986,0.00017015,2]
[326759600,1715323834860,-1894.91130728,0.00017015,2]
[326759601,1715323834869,-8961.04044708,0.00017016,2]
[326759602,1715323834879,-2674.97171764,0.00017016,2]
[326759603,1715323834888,-2104.72344677,0.00017017,2]
[326759604,1715323834897,-62525.03509015,0.00017017,2]
[326759605,1715323834906,-1042.0,0.00017018,2]
[326759606,1715323834915,-3453.38256528,0.00017018,2]
[326759656,1715323838719,-447.20436467,0.00017014,2]
[326759658,1715323838728,-4225.34368649,0.00017018,2]
[326759660,1715323838740,-1706.57429144,0.00017018,2]
[326759662,1715323838748,-1375.21450856,0.0001702,2]
[326759664,1715323838759,-1925.7675366,0.0001702,2]
[326759694,1715323841227,-318.6130352,0.0001702,2]
[326759695,1715323841941,-12077.75009238,0.0001702,2]
[326759697,1715323841953,-247.34731218,0.00017021,2]
[326759699,1715323841963,-292.24630135,0.00017022,2]
[326759701,1715323841973,-188.32897453,0.00017068,2]
[326759703,1715323841984,-1594.87469916,0.00017076,2]
[326759704,1715323841993,-172.9495847,0.0001708,2]
[326759705,1715323842002,-633.03673998,0.0001708,2]
[326759706,1715323842012,-332.48123441,0.0001708,2]
[326759707,1715323842022,-154.7215013,0.00017206,2]
[326759708,1715323842031,-7884.1916548,0.00017206,2]
[326759709,1715323842040,-904.53581118,0.00017206,2]
[326759710,1715323842049,-1713.52039077,0.00017306,2]
[326759711,1715323842058,-929.6379252,0.00017612,2]
[326759712,1715323842068,-1000.0,0.00017943,3]
[326759713,1715323842077,-1000.0,0.00017946,3]
[326759714,1715323842086,-1000.0,0.00018126,3]
[326759715,1715323842095,-1000.0,0.00018547,3]
[326759716,1715323842104,-150.0,0.000189,2]
[326759717,1715323842113,-169.629126,0.00019178,2]
[326759718,1715323842122,-881.69910972,0.00019614,2]
[326759719,1715323842132,-1492.24119713,0.00019614,2]
[326759720,1715323842141,-1000.0,0.0001973,3]
[326759721,1715323842150,-931.00888507,0.0002,2]
[326759784,1715323849190,-1382.87460767,0.00017013,2]
[326759785,1715323870373,1624.38458646,9.999e-05,2]
[326759786,1715323924255,330.512254,9.999e-05,2]
[326759795,1715324316759,433.29055581,0.00016954,2]
[326759796,1715324319095,897.03208422,0.0001501,2]
[326759797,1715324319156,1733.04737302,0.0001501,2]
[326759798,1715324339850,1042.0,9.999e-05,2]
[326759803,1715324396794,11242.5733639,0.00016041,2]
[326759804,1715324408189,304.18673556,9.999e-05,2]
[326759805,1715324417134,941.02505706,0.00015,2]
[326759806,1715324448854,292.24630135,9.999e-05,2]
[326759807,1715324451983,447.20436467,9.999e-05,2]
[326759808,1715324504466,1057.47704209,0.00016938,2]
[326759809,1715324690071,787.774947,0.00016015,2]
[326759810,1715324715937,346.63244464,0.00016938,2]
[326759811,1715324784864,925.29241182,0.00016938,2]
[326759812,1715324798174,941.02505706,0.00017,2]
[326759813,1715324809117,5974.02696472,0.00017,2]
[326759814,1715324810266,3457.70192986,0.00017,2]
[326759815,1715324810642,874.88808151,0.00017,2]
[326759816,1715324894518,1042.0,9.999e-05,2]
[326759817,1715324971013,1624.38458646,9.999e-05,2]
[326759882,1715325032976,-1042.0,0.00016981,2]
[326759884,1715325032986,-1894.91130728,0.00016982,2]
[326759885,1715325032996,-2674.97171764,0.00016983,2]
[326759886,1715325033005,-4978.35580394,0.00016984,2]
[326759887,1715325033015,-2104.72344677,0.00016985,2]
[326759888,1715325033025,-3457.70192986,0.00016985,2]
[326759889,1715325033035,-884.83019048,0.00016986,2]
[326759890,1715325033044,-7884.1916548,0.00016986,2]
[326759891,1715325033056,-2124.89254135,0.00017,2]
[326759892,1715325033066,-713.0309286,0.00017,2]
[326759893,1715325033075,-223.47017863,0.00017,2]
[326759894,1715325033085,-4234.1215094,0.00017,2]
[326759895,1715325033095,-292.59792639,0.00017037,2]
[326759896,1715325033105,-175.54023672,0.00017038,2]
[326759897,1715325033114,-1000.0,0.00017054,3]
[326759898,1715325033129,-1000.0,0.00017055,3]
[326759899,1715325033138,-346.63244463,0.00017906,2]
[326759900,1715325033148,-1161.53675894,0.00018795,2]
[326759901,1715325033157,-346.63244463,0.00018875,2]
[326759902,1715325033168,-309.28863614,0.00018886,2]
[326759903,1715325033178,-161.01878672,0.000189,2]
[326759904,1715325033188,-176.075506,0.00019178,2]
[326759905,1715325033198,-346.63244463,0.00019843,2]
[326759906,1715325033210,-449.21433957,0.00019998,2]
[326759907,1715325033338,-154.7215013,0.00019998,2]
[326759908,1715325033348,-1880.48043074,0.00019999,2]
[326759909,1715325033358,-2941.00647653,0.0002,2]
[326759910,1715325033368,-1605.06641203,0.0002,2]
[326759911,1715325033378,-67521.8836984,0.0002,2]
[326759912,1715325033387,-20959.9210752,0.0002,2]
[326759913,1715325033396,-200.0,0.0002,2]
[326759914,1715325033406,-504.3,0.00020297,2]
[326759915,1715325033415,-346.63244463,0.00020811,2]
[326759916,1715325033425,-9412.96420707,0.00020911,2]
[326759917,1715325033434,-2778.37153564,0.00020911,2]
[326759918,1715325033444,-486.11776348,0.00020911,2]
[326759919,1715325033453,-315.23619623,0.00020911,2]
[326759920,1715325033463,-305.22164775,0.00020911,2]
[326759921,1715325033473,-2252.87768725,0.00020912,2]
[326759922,1715325033482,-3053.25614147,0.00020912,2]
[326759923,1715325033492,-7284.59386678,0.00020912,2]
[326759924,1715325033501,-491.35885126,0.00021343,2]
[326759925,1715325033511,-894.13291941,0.00021343,2]
[326759926,1715325033521,-156.26167825,0.00021344,2]
[326759927,1715325033530,-583.67613959,0.00021344,2]
[326759928,1715325033539,-225.0,0.00021918,2]
[326759929,1715325033548,-225.0,0.00021918,2]
[326759930,1715325033559,-166.666666,0.00021918,2]
[326759931,1715325033568,-159.4535182,0.00022,2]
[326759932,1715325033579,-2800.64054806,0.00022,2]
[326759933,1715325033588,-261.474826,0.00022264,2]
[326759934,1715325033597,-166.666666,0.00022431,2]
[326759935,1715325033607,-166.666666,0.00022944,2]
[326759936,1715325033617,-714.97924015,0.00023,2]
[326759937,1715325033626,-154.7215013,0.00023,2]
[326759938,1715325033635,-166.666666,0.00023456,2]
[326759939,1715325033645,-161.01878672,0.000239,2]
[326759940,1715325033655,-166.666666,0.00023969,2]
[326759941,1715325033664,-787.774947,0.00024022,2]
[326759942,1715325033673,-166.666666,0.00024482,2]
[326759943,1715325033683,-200.0,0.00024658,15]
[326759944,1715325033692,-504.3,0.00024907,3]
[326759945,1715325033701,-167.10326178,0.00025,2]
[326759946,1715325033711,-400.10978683,0.00025,2]
[326759947,1715325033720,-151.535,0.00026728,2]
[326759948,1715325033729,-186.85286601,0.00027,2]
[326759949,1715325033739,-150.0,0.0002726,14]
[326759950,1715325033748,-221.20105551,0.00028,2]
[326759951,1715325033758,-7951.92773563,0.00028,2]
[326759952,1715325033768,-589.0,0.000283,2]
[326759953,1715325033777,-261.474826,0.00028637,2]
[326759954,1715325033787,-161.01878672,0.000289,2]
[326759955,1715325033796,-150.0,0.0002898,17]
[326759956,1715325033806,-504.3,0.00029518,5]
[326759957,1715325033815,-17197.76503125,0.0003,10]
[326759958,1715325033825,-154.7215013,0.0003,4]
[326759959,1715325033834,-447.67704854,0.00032,4]
[326759960,1715325033843,-467.00386112,0.00034,4]
[326759961,1715325033852,-504.3,0.00034128,7]
[326759962,1715325033861,-160.0,0.000349,11]
[326759963,1715325033870,-500.0,0.00034987,3]
[326759964,1715325033879,-154.7215013,0.00035,4]
[326759965,1715325033888,-1332.62069325,0.00035,4]
[326759966,1715325033898,-261.474826,0.00035011,2]
[326759967,1715325033907,-55555.0,0.00035416,5]
[326759968,1715325033916,-1412.57550755,0.00035416,2]
[326759969,1715325033926,-437.57262601,0.000356,30]
[326759970,1715325033935,-450.045099,0.00035616,120]
[326759971,1715325033944,-22025.52,0.00035616,3]
[326759972,1715325033952,-1980.86570834,0.00037,2]
[326759973,1715325033962,-151.0,0.000378,2]
[326759974,1715325033971,-151.0,0.000378,2]
[326759975,1715325033981,-151.0,0.000378,2]
[326759976,1715325033990,-500.0,0.00037829,30]
[326759977,1715325034000,-500.0,0.00037829,30]
[326759978,1715325034010,-500.0,0.00037829,30]
[326759979,1715325034019,-610.45210648,0.00037829,30]
[326759980,1715325034028,-44672.66762654,0.00038,7]
[326759981,1715325034037,-157.459156,0.00038,2]
[326759982,1715325034047,-151.0,0.00038,2]
[326759983,1715325034056,-151.0,0.00038,2]
[326759984,1715325034065,-151.0,0.00038,2]
[326759985,1715325034074,-151.0,0.00038,2]
[326759986,1715325034083,-287.156018,0.00038,2]
[326759987,1715325034092,-287.156018,0.00038,2]
[326759988,1715325034101,-151.0,0.00038,2]
[326759989,1715325034110,-151.0,0.00038,2]
[326759990,1715325034120,-151.0,0.00038,2]
[326759991,1715325034132,-151.0,0.00038,2]
[326759992,1715325034141,-242.250852,0.00038,2]
[326759993,1715325034150,-151.0,0.00038,2]
[326759994,1715325034159,-151.0,0.00038,2]
[326759995,1715325034170,-151.0,0.00038,2]
[326759996,1715325034179,-175.715298,0.00038,2]
[326759997,1715325034189,-151.0,0.00038,2]
[326759998,1715325034198,-175.715298,0.00038,2]
[326759999,1715325034208,-151.0,0.00038,2]
[326760000,1715325034220,-865.120702,0.00038,2]
[326760001,1715325034230,-865.120702,0.00038,2]
[326760002,1715325034240,-3968.64717429,0.00038156,14]
[326760003,1715325034251,-154.95734354,0.0003829,4]
[326760004,1715325034260,-181.325104,0.00038356,2]
[326760005,1715325034269,-181.325104,0.00038356,2]
[326760006,1715325034279,-3084.64,0.00038356,10]
[326760007,1715325034288,-3084.64,0.00038356,10]
[326760008,1715325034297,-3084.64,0.00038356,10]
[326760009,1715325034307,-3084.64,0.00038356,10]
[326760010,1715325034316,-3084.64,0.00038356,10]
[326760011,1715325034326,-3084.64,0.00038356,10]
[326760012,1715325034335,-3084.64,0.00038356,10]
[326760013,1715325034344,-3084.64,0.00038356,10]
[326760014,1715325034353,-3084.64,0.00038356,10]
[326760015,1715325034362,-3084.64,0.00038356,10]
[326760016,1715325034371,-3084.64,0.00038356,10]
[326760017,1715325034380,-3084.64,0.00038356,10]
[326760018,1715325034390,-181.3965714,0.00038608,3]
[326760019,1715325034399,-504.3,0.00038739,15]
[326760020,1715325034408,-2341.67,0.00038772,2]
[326760021,1715325034417,-2341.67,0.00038772,2]
[326760022,1715325034426,-2341.67,0.00038772,2]
[326760023,1715325034436,-2341.67,0.00038772,2]
[326760024,1715325034445,-2341.67,0.00038772,2]
[326760025,1715325034454,-2341.67,0.00038772,2]
[326760026,1715325034463,-2341.67,0.00038772,2]
[326760027,1715325034472,-2341.67,0.00038772,2]
[326760028,1715325034482,-2341.67,0.00038772,2]
[326760029,1715325034491,-2341.67,0.00038772,2]
[326760030,1715325034500,-151.0,0.00038772,2]
[326760031,1715325034509,-151.0,0.00038772,2]
[326760032,1715325034517,-44988.61050206,0.00038773,30]
[326760094,1715325041316,-12663.60854874,0.00016984,2]
[326760095,1715325041851,-630.43,0.00016984,2]
[326760122,1715325044326,-0.01087765,0.00016984,2]
[326760343,1715325048987,-2431.99395226,0.00016983,2]
[326760345,1715325048997,-17285.90545933,0.00016984,2]
[326760347,1715325049009,-415.11121662,0.00016984,2]
[326760428,1715325455696,522.19690124,9.999e-05,2]
[326760429,1715325582473,-2593.72337385,0.00015885,2]
[326760430,1715325582495,-1042.0,0.00015886,2]
[326760431,1715325582517,-7884.1916548,0.00015887,2]
[326760432,1715325582751,-209.17986,0.0001589,2]
[326760433,1715325582777,-2002.33405621,0.00016982,2]
[326760434,1715325582798,-1368.58143686,0.00017,2]
[326760435,1715325609199,1642.29772423,0.00017,2]
[326760436,1715325627201,1368.58143686,0.00017,2]
[326760437,1715325643208,1368.58143686,0.00017,2]
[326760438,1715325659199,713.0309286,0.00017,2]
[326760439,1715325677196,713.0309286,0.00017,2]
[326760440,1715325695251,713.0309286,0.00017,2]
[326760447,1715325886713,-168.85101534,0.00016898,2]
[326760448,1715325886734,-3457.70192986,0.00016997,2]
[326760449,1715325886756,-2593.72337385,0.00016997,2]
[326760450,1715325886776,-23111.25991548,0.00016997,2]
[326760455,1715325955618,-809.63086036,0.000169,2]
[326760456,1715325955641,-1757.45394843,0.00016995,2]
[326760457,1715325955663,-923.13519121,0.00016995,2]
[326760497,1715326232168,-7884.1916548,0.00016986,2]
[326760498,1715326232178,-2593.72337385,0.00016987,2]
[326760499,1715326232187,-154.7215013,0.00016995,2]
[326760500,1715326232196,-713.0309286,0.00017,2]
[326760501,1715326232205,-806.15341842,0.0001805,2]
[326760502,1715326232214,-25858.2628215,0.00018148,2]
[326760503,1715326232226,-309.33493067,0.00018148,2]
[326760504,1715326232237,-8738.39166785,0.00018148,2]
[326760603,1715326240531,-6332.1853544,0.00018148,2]
[326760604,1715326241853,-316.785,0.00018148,2]
[326760606,1715326241866,-1522.3868,0.00018148,2]
[326760609,1715326241881,-19447.68851573,0.00018148,2]
[326760611,1715326241892,-24900.0,0.00018149,2]
[326760614,1715326241903,-274.013356,0.00019227,2]
[326760617,1715326241914,-283.72,0.00019968,3]
[326760618,1715326241924,-851.21,0.00019978,3]
[326760619,1715326241934,-1578.7542886,0.00019988,2]
[326760620,1715326241944,-513.737451,0.00019997,2]
[326760661,1715326243799,-886.43582706,0.00019997,2]
[326760664,1715326243809,-580.48541042,0.00019998,2]
[326760665,1715326243819,-52219.37801087,0.0002,2]
[326760667,1715326243828,-3490.21958311,0.0002,2]
[326760668,1715326243838,-500.02883964,0.00020912,2]
[326760669,1715326243847,-567.44,0.00021338,3]
[326760670,1715326243857,-225.0,0.00021918,2]
[326760671,1715326243866,-166.666666,0.00021918,2]
[326760672,1715326243875,-159.4535182,0.00022,2]
[326760673,1715326243884,-209.17986,0.00022264,2]
[326760674,1715326243893,-166.666666,0.00022431,2]
[326760675,1715326243902,-294.2,0.0002253,2]
[326760676,1715326243911,-166.666666,0.00022944,2]
[326760677,1715326243920,-155.15125392,0.00023,2]
[326760678,1715326243929,-714.97924015,0.00023,2]
[326760679,1715326244049,-168.85101534,0.00023104,2]
[326760680,1715326244059,-166.666666,0.00023456,2]
[326760681,1715326244068,-166.666666,0.00023969,2]
[326760682,1715326244077,-166.666666,0.00024482,2]
[326760683,1715326244090,-400.10978683,0.00025,2]
[326760684,1715326244099,-167.10326178,0.00025,2]
[326760685,1715326244107,-806.15341835,0.00026886,2]
[326760686,1715326244117,-186.85286601,0.00027,2]
[326760687,1715326244126,-294.2,0.00027655,5]
[326760688,1715326244135,-576.77484178,0.00028,2]
[326760689,1715326244144,-221.20105551,0.00028,2]
[326760690,1715326244153,-154.16851109,0.00028226,2]
[326760691,1715326244163,-209.17986,0.00028637,2]
[326760692,1715326244171,-274.013356,0.0002884,2]
[326760693,1715326244181,-168.85101534,0.0002931,2]
[326760694,1715326244190,-154.83438006,0.0003,4]
[326760695,1715326244199,-17197.76503125,0.0003,10]
[326760696,1715326244208,-549.64562367,0.00030039,2]